bitfinex-derivatives/quotes_BTCF0:USTF0_20210705
["timestamp","ask_amount","ask_price","bid_price","bid_amount"]
[1625501217895,0.31611482,33637.0,33636.0,0.26313955]
[1625501218246,0.31611482,33637.0,33636.0,0.08771318]
[1625501218846,1.71178897,33637.0,33636.0,0.08771318]
[1625501219598,1.77078897,33637.0,33636.0,0.08771318]
[1625501220350,1.77078897,33637.0,33635.0,0.26311074]
[1625501220804,1.41474476,33636.0,33635.0,0.26311074]
[1625501220917,1.53274476,33636.0,33635.0,0.26311074]
[1625501221002,1.47374476,33636.0,33635.0,0.26311074]
[1625501221301,1.47374476,33636.0,33629.0,1.40329577]
[1625501221302,1.45720024,33636.0,33629.0,1.40329577]
[1625501221452,1.39820024,33636.0,33629.0,1.40329577]
[1625501221904,0.24057544,33637.0,33634.0,0.30957544]
[1625501222002,0.24057544,33637.0,33634.0,0.64725544]
[1625501222254,0.24057544,33637.0,33634.0,2.05030823]
[1625501222652,0.24057544,33637.0,33635.0,1.40303712]
[1625501223604,0.24057544,33637.0,33636.0,1.40290879]
[1625501223905,0.24057544,33637.0,33636.0,1.64348423]
[1625501224004,0.24057544,33637.0,33636.0,2.87101954]
[1625501224103,0.24057544,33637.0,33636.0,7.02871954]
[1625501224307,0.24057544,33639.0,33636.0,7.02871954]
[1625501224407,0.24057544,33639.0,33636.0,7.08771954]
[1625501224957,0.24057544,33639.0,33638.0,2.63050436]
[1625501225057,0.24057544,33639.0,33638.0,2.68950436]
[1625501225156,0.24057544,33639.0,33638.0,2.63050436]
[1625501226211,0.29957544,33639.0,33638.0,1.2275687]
[1625501226810,0.35857544,33639.0,33638.0,1.2275687]
[1625501227211,0.37510586,33639.0,33638.0,1.2275687]
[1625501227663,4.74310586,33639.0,33638.0,1.2275687]
[1625501227764,5.96843795,33639.0,33635.0,1.22775341]
[1625501227965,0.24057544,33636.0,33635.0,1.22775341]
[1625501228064,0.35857544,33636.0,33635.0,1.22775341]
[1625501228213,0.3751065,33636.0,33635.0,1.22775341]
[1625501228315,1.59992843,33636.0,33634.0,0.01]
[1625501228716,0.01652374,33635.0,33634.0,0.01]
[1625501228816,1.35920323,33635.0,33634.0,0.01]
[1625501229314,2.75889965,33635.0,33634.0,0.01]
[1625501229716,1.35920323,33635.0,33634.0,0.01]
[1625501229818,1.34267949,33635.0,33634.0,0.01]
[1625501229966,1.58325493,33635.0,33634.0,0.01]
[1625501233976,2.63560047,33635.0,33634.0,0.01]
[1625501234477,1.41092098,33635.0,33634.0,0.01]
[1625501234926,1.41092098,33635.0,33634.0,1.05580862]
[1625501235226,1.35192098,33635.0,33634.0,1.05580862]
[1625501235327,1.29292098,33635.0,33634.0,1.05580862]
[1625501238333,1.35192098,33635.0,33634.0,1.05580862]
[1625501238433,1.41092098,33635.0,33634.0,1.05580862]
[1625501238532,1.35192098,33635.0,33634.0,1.05580862]
[1625501238733,1.41092098,33635.0,33634.0,1.05580862]
[1625501238836,2.63864862,33635.0,33634.0,0.01]
[1625501239734,2.65517378,33635.0,33634.0,0.01]
[1625501239835,2.59617378,33635.0,33634.0,0.01]
[1625501240036,1.42744614,33635.0,33634.0,1.05647488]
[1625501240886,1.42744614,33635.0,33634.0,0.01]
[1625501242741,2.6552567,33635.0,33634.0,0.01]
[1625501242990,2.5962567,33635.0,33634.0,0.01]
[1625501243191,1.36844614,33635.0,33634.0,1.05667127]
[1625501245996,1.30944614,33635.0,33634.0,1.05667127]
[1625501251555,1.30944614,33635.0,33634.0,1.06042293]
[1625501251757,0.2571006,33635.0,33634.0,2.28441626]
[1625501253611,1.30961911,33635.0,33634.0,2.28441626]
[1625501253710,1.30961911,33635.0,33634.0,2.34341626]
[1625501253910,1.30961911,33635.0,33634.0,2.28441626]
[1625501254163,0.2571006,33635.0,33634.0,2.28441626]
[1625501254260,0.2571006,33635.0,33634.0,2.34341626]
[1625501254360,0.2571006,33635.0,33634.0,2.28441626]
[1625501254760,0.2571006,33635.0,33634.0,2.34341626]
[1625501254960,0.2571006,33635.0,33634.0,2.28441626]
[1625501256013,0.5777906,33635.0,33634.0,2.28441626]
[1625501256313,0.5777906,33635.0,33634.0,1.06042293]
[1625501256314,1.6302801,33635.0,33634.0,1.06042293]
[1625501256664,2.85821024,33635.0,33634.0,0.01375166]
[1625501256964,2.91721024,33635.0,33634.0,0.01375166]
[1625501257166,2.91721024,33635.0,33634.0,0.01]
[1625501257266,2.97621024,33635.0,33634.0,0.01]
[1625501259268,2.91721024,33635.0,33634.0,0.0137508]
[1625501259569,2.85821024,33635.0,33634.0,0.2452908]
[1625501259669,1.3095901,33635.0,33634.0,1.29449382]
[1625501259777,1.3095901,33635.0,33634.0,1.35349382]
[1625501260219,1.3095901,33635.0,33634.0,1.59406926]
[1625501260320,1.3095901,33635.0,33634.0,1.53506926]
[1625501260487,0.2571006,33635.0,33634.0,2.75803768]
[1625501260822,0.2571006,33635.0,33634.0,2.81703768]
[1625501260921,0.2571006,33635.0,33634.0,2.75803768]
[1625501264279,0.2571006,33635.0,33634.0,4.85154161]
[1625501269839,0.2571006,33635.0,33634.0,6.42577358]
[1625501269942,0.2571006,33635.0,33634.0,6.48477358]
[1625501271544,0.24057544,33635.0,33634.0,6.48477358]
[1625501271647,0.24057544,33635.0,33634.0,6.54377358]
[1625501271746,0.24057544,33635.0,33634.0,6.55399964]
[1625501271895,7.544e-05,33635.0,33634.0,6.55399964]
[1625501271995,1.29507626,33639.0,33634.0,6.55399964]
[1625501271996,0.24057544,33639.0,33634.0,6.55399964]
[1625501272196,0.24057544,33639.0,33635.0,0.01022252]
[1625501272296,0.24057544,33639.0,33638.0,5.9446768]
[1625501272396,0.24057544,33639.0,33638.0,6.18525224]
[1625501272495,0.24057544,33639.0,33638.0,6.24425224]
[1625501272595,0.25712774,33639.0,33638.0,6.24425224]
[1625501273349,0.25712774,33639.0,33638.0,10.22215224]
[1625501273449,0.25712774,33639.0,33638.0,10.16315224]
[1625501273600,0.25712774,33639.0,33638.0,10.22215224]
[1625501273752,0.25712774,33639.0,33638.0,10.16315224]
[1625501273856,0.96033804,33639.0,33638.0,10.16315224]
[1625501274307,0.96033804,33639.0,33638.0,10.22215224]
[1625501274406,0.96033804,33639.0,33638.0,8.64856132]
[1625501274707,0.7197626,33639.0,33638.0,8.64856132]
[1625501274911,0.0165523,33639.0,33638.0,10.22145202]
[1625501275008,0.98528313,33643.0,33638.0,10.22145202]
[1625501275109,0.66818313,33643.0,33638.0,10.28045202]
[1625501275211,0.43848313,33643.0,33638.0,10.28045202]
[1625501275510,0.43848313,33643.0,33639.0,0.00374909]
[1625501275610,0.24057544,33650.0,33642.0,3.28883355]
[1625501275710,0.24057544,33650.0,33642.0,3.34783355]
[1625501275810,0.24057544,33650.0,33643.0,0.00374895]
[1625501275908,0.24057544,33650.0,33643.0,0.06274895]
[1625501276009,0.24057544,33650.0,33643.0,0.12174895]
[1625501276210,0.24057544,33650.0,33644.0,0.01017787]
[1625501276318,0.24057544,33650.0,33644.0,0.07292631]
[1625501276436,1.40555623,33651.0,33649.0,1.01055632]
[1625501276664,1.40555623,33651.0,33649.0,1.06955632]
[1625501276761,1.5812288,33654.0,33649.0,1.06955632]
[1625501276762,1.40359284,33656.0,33649.0,2.46077767]
[1625501276866,1.40359284,33656.0,33653.0,4.6812]
[1625501276962,1.40359284,33656.0,33653.0,4.7402]
[1625501277162,0.01646305,33655.0,33653.0,4.7402]
[1625501277262,0.01646305,33655.0,33653.0,4.6812]
[1625501277964,1.64410607,33657.0,33653.0,4.6812]
[1625501278165,1.64410607,33657.0,33653.0,4.7402]
[1625501278266,0.01646336,33656.0,33653.0,4.6812]
[1625501279322,1.64410607,33657.0,33653.0,4.6812]
[1625501279826,0.0164641,33656.0,33653.0,4.6812]
[1625501280122,1.4187811,33656.0,33653.0,4.6812]
[1625501280372,1.65935654,33656.0,33655.0,0.24057544]
[1625501281226,1.71835654,33656.0,33655.0,0.24057544]
[1625501281426,0.31603954,33656.0,33655.0,0.24057544]
[1625501281675,0.29957544,33656.0,33655.0,0.24057544]
[1625501281976,0.31603929,33656.0,33655.0,0.24057544]
[1625501282227,0.29957544,33656.0,33655.0,0.24057544]
[1625501290045,0.54014544,33656.0,33655.0,0.24057544]
[1625501294305,1.06478019,33656.0,33655.0,0.24057544]
[1625501295758,1.08124365,33656.0,33655.0,0.24057544]
[1625501296360,1.06478019,33656.0,33655.0,0.24057544]
[1625501296561,1.08124365,33656.0,33655.0,0.24057544]
[1625501303425,0.5566089,33656.0,33655.0,0.24057544]
[1625501303624,0.59182591,33656.0,33655.0,0.24057544]
[1625501303826,1.11638395,33656.0,33655.0,0.24057544]
[1625501305529,2.16537855,33656.0,33655.0,0.24057544]
[1625501305833,2.16537855,33656.0,33655.0,0.57221544]
[1625501305968,0.87581395,33656.0,33655.0,0.57221544]
[1625501306031,0.78159694,33656.0,33655.0,0.5759849]
[1625501306130,0.5410215,33656.0,33655.0,0.5759849]
[1625501306378,0.5410215,33656.0,33655.0,0.6349849]
[1625501306578,0.5410215,33656.0,33655.0,0.87556034]
[1625501306679,0.01646346,33656.0,33655.0,1.39645482]
[1625501307081,0.01645908,33657.0,33655.0,1.39645482]
[1625501307379,0.01645908,33657.0,33656.0,0.00376988]
[1625501307479,0.01645908,33657.0,33656.0,0.06276988]
[1625501307631,0.87084002,33660.0,33656.0,0.06276988]
[1625501307731,0.87084002,33660.0,33657.0,4.34]
[1625501307930,0.01640763,33659.0,33657.0,4.34378663]
[1625501308335,0.01640763,33659.0,33658.0,0.00378633]
[1625501308533,0.01640763,33659.0,33658.0,0.24436177]
[1625501309134,0.01642085,33662.0,33658.0,0.24436177]
[1625501309234,0.07542085,33662.0,33658.0,0.24436177]
[1625501309334,0.01642073,33659.0,33658.0,0.24436177]
[1625501309583,0.01642089,33661.0,33658.0,0.24436177]
[1625501309884,0.01642081,33662.0,33658.0,0.24057544]
[1625501309984,0.07542081,33662.0,33658.0,0.24057544]
[1625501310184,0.01642076,33660.0,33658.0,0.24057544]
[1625501310384,0.0164209,33661.0,33658.0,0.24057544]
[1625501310640,0.0164209,33661.0,33660.0,0.24057544]
[1625501310735,0.01642098,33662.0,33660.0,0.24057544]
[1625501310885,0.07542098,33662.0,33660.0,0.24057544]
[1625501311187,0.01642094,33661.0,33660.0,0.24057544]
[1625501311738,0.01642094,33662.0,33660.0,0.24057544]
[1625501311939,0.07542094,33662.0,33660.0,0.24057544]
[1625501312242,0.01642091,33661.0,33660.0,0.24057544]
[1625501312792,0.24057544,33663.0,33660.0,0.24057544]
[1625501312793,0.01642086,33662.0,33660.0,0.24057544]
[1625501312942,0.07542086,33662.0,33660.0,0.24057544]
[1625501313293,0.01642098,33661.0,33660.0,0.24057544]
[1625501313842,0.01642098,33662.0,33660.0,0.24057544]
[1625501313942,0.07542098,33662.0,33660.0,0.24057544]
[1625501314442,0.01642107,33661.0,33660.0,0.24057544]
[1625501314893,0.016421,33662.0,33660.0,0.24057544]
[1625501314994,0.075421,33662.0,33660.0,0.24057544]
[1625501315294,0.3497743,33661.0,33660.0,0.24057544]
[1625501315495,0.36619497,33661.0,33660.0,0.24057544]
[1625501317399,0.36619497,33661.0,33660.0,0.58793481]
[1625501317898,0.01642067,33661.0,33660.0,0.24057544]
[1625501318200,0.01642054,33662.0,33660.0,0.24057544]
[1625501318298,0.3498619,33661.0,33660.0,0.58794108]
[1625501318700,0.01642054,33662.0,33660.0,0.58794108]
[1625501318801,0.01642047,33661.0,33660.0,0.58794108]
[1625501319052,0.01642047,33662.0,33660.0,0.58794108]
[1625501319253,0.01642051,33661.0,33660.0,0.58794108]
[1625501319552,0.01642042,33662.0,33660.0,0.58794108]
[1625501319903,0.3499933,33661.0,33660.0,0.58794108]
[1625501320305,0.6163433,33661.0,33660.0,0.58794108]
[1625501320403,0.69176413,33661.0,33660.0,0.58794108]
[1625501320505,0.34177083,33661.0,33660.0,0.58794108]
[1625501320807,5.03977083,33661.0,33660.0,0.58794108]
[1625501320955,6.26440213,33661.0,33660.0,0.24057544]
[1625501322006,1.56640213,33661.0,33660.0,0.24057544]
[1625501322207,2.96656777,33661.0,33660.0,0.24057544]
[1625501322708,2.95014694,33661.0,33660.0,0.24057544]
[1625501322807,2.96656926,33661.0,33660.0,0.24057544]
[1625501326717,2.90756926,33661.0,33660.0,0.24057544]
[1625501327169,2.96656926,33661.0,33660.0,0.24057544]
[1625501328772,2.90756926,33661.0,33660.0,0.24057544]
[1625501328872,2.96656926,33661.0,33660.0,0.24057544]
[1625501328972,2.90756926,33661.0,33660.0,0.24057544]
[1625501329172,2.96656926,33661.0,33660.0,0.24057544]
[1625501329273,2.90756926,33661.0,33660.0,0.24057544]
[1625501329374,2.96656926,33661.0,33660.0,0.24057544]
[1625501329474,4.54534724,33661.0,33660.0,0.24057544]
[1625501329773,4.48634724,33661.0,33660.0,0.24057544]
[1625501330174,4.54534724,33661.0,33658.0,4.71800886]
[1625501330425,2.63136505,33659.0,33658.0,4.71800886]
[1625501330625,2.74936505,33659.0,33658.0,4.71800886]
[1625501330726,2.98994049,33659.0,33658.0,4.71800886]
[1625501330876,3.00633877,33659.0,33658.0,4.71800886]
[1625501333981,3.00633877,33659.0,33655.0,0.48115088]
[1625501333982,4.58759596,33659.0,33655.0,1.7042771]
[1625501334387,2.63550977,33656.0,33655.0,1.7042771]
[1625501334486,2.69450977,33656.0,33655.0,1.7042771]
[1625501334686,2.71090812,33656.0,33655.0,1.7042771]
[1625501335391,3.41382371,33656.0,33655.0,2.40318644]
[1625501335589,3.47282371,33656.0,33655.0,2.40318644]
[1625501335690,3.41382371,33656.0,33655.0,2.40318644]
[1625501335790,3.47282371,33656.0,33655.0,2.40318644]
[1625501335892,3.47282371,33656.0,33655.0,1.18006022]
[1625501336402,3.47282371,33656.0,33655.0,0.69890934]
[1625501336592,3.50804368,33656.0,33655.0,0.69890934]
[1625501336742,3.74861912,33656.0,33655.0,0.69890934]
[1625501336844,5.32983774,33656.0,33653.0,0.34993923]
[1625501337093,0.01640008,33655.0,33653.0,0.34993923]
[1625501337194,0.31345008,33655.0,33653.0,0.29023923]
[1625501337292,0.43145008,33655.0,33653.0,0.29023923]
[1625501337494,4.91973888,33654.0,33651.0,0.35012757]
[1625501337693,5.05413942,33654.0,33651.0,0.35012757]
[1625501337897,0.01640061,33653.0,33651.0,0.35012757]
[1625501337995,0.13440061,33653.0,33651.0,0.35012757]
[1625501338099,3.7193,33652.0,33651.0,0.35012757]
[1625501338197,9.75245358,33652.0,33649.0,0.70053992]
[1625501338296,9.81145358,33652.0,33649.0,0.70053992]
[1625501338449,0.01640089,33651.0,33649.0,0.70053992]
[1625501338648,0.13440089,33651.0,33649.0,0.70053992]
[1625501338753,0.48115088,33650.0,33649.0,0.70053992]
[1625501338851,6.51442132,33650.0,33648.0,0.70071222]
[1625501338948,6.57342132,33650.0,33648.0,0.70071222]
[1625501339099,6.58982233,33650.0,33648.0,0.70071222]
[1625501339198,4.39082465,33649.0,33648.0,0.70071222]
[1625501339297,4.50882465,33649.0,33648.0,0.70071222]
[1625501339398,4.52522566,33649.0,33648.0,0.70071222]
[1625501340201,4.52522566,33649.0,33647.0,0.70026776]
[1625501340499,0.01640106,33648.0,33647.0,0.70026776]
[1625501340600,4.67763909,33648.0,33647.0,0.70026776]
[1625501340699,4.73663909,33648.0,33647.0,0.70026776]
[1625501340801,4.97721453,33648.0,33647.0,0.70026776]
[1625501342657,4.97721453,33648.0,33647.0,1.74926281]
[1625501342853,4.97721453,33648.0,33647.0,1.98983825]
[1625501343254,3.57223393,33648.0,33647.0,1.98983825]
[1625501344055,4.97659168,33648.0,33647.0,1.98983825]
[1625501344555,4.91759168,33648.0,33647.0,1.98983825]
[1625501344658,4.40649624,33648.0,33647.0,1.98983825]
[1625501344857,4.40649624,33648.0,33647.0,2.28941369]
[1625501344961,1.57993668,33652.0,33647.0,2.28941369]
[1625501344962,0.70206361,33651.0,33647.0,4.90562845]
[1625501345057,0.70206361,33651.0,33647.0,5.22286845]
[1625501345260,0.70206361,33651.0,33648.0,0.00379129]
[1625501345462,0.70206361,33651.0,33648.0,0.06279129]
[1625501345564,0.70199818,33654.0,33650.0,10.24045495]
[1625501345660,0.70199818,33654.0,33650.0,10.29945495]
[1625501345759,0.70199818,33654.0,33651.0,0.00379111]
[1625501345959,0.70199818,33654.0,33651.0,0.06279111]
[1625501346359,0.70199818,33654.0,33651.0,0.059]
[1625501346523,0.70192579,33655.0,33653.0,4.35421005]
[1625501346629,0.76092579,33655.0,33653.0,4.35421005]
[1625501346828,0.76092579,33655.0,33654.0,0.48115088]
[1625501346960,0.76092579,33655.0,33654.0,4.83557083]
[1625501347564,1.81377297,33655.0,33654.0,3.44215645]
[1625501349067,1.83018156,33655.0,33654.0,3.44215645]
[1625501349266,1.88918156,33655.0,33654.0,3.44215645]
[1625501349364,3.11752873,33655.0,33654.0,2.22291886]
[1625501350567,1.88918156,33655.0,33654.0,3.72514626]
[1625501352373,1.83018156,33655.0,33654.0,3.72514626]
[1625501352823,0.77733438,33655.0,33654.0,5.11772339]
[1625501354327,1.83012811,33655.0,33654.0,3.72514626]
[1625501356429,0.77733438,33655.0,33654.0,3.72514626]
[1625501358035,1.82996802,33655.0,33654.0,3.72514626]
[1625501358642,0.77733438,33655.0,33654.0,3.72514626]
[1625501358984,1.83005458,33655.0,33654.0,3.72514626]
[1625501360848,1.81364599,33655.0,33654.0,3.72893339]
[1625501361090,1.83005456,33655.0,33654.0,3.72514626]
[1625501362046,0.77733436,33655.0,33654.0,3.72514626]
[1625501362393,1.82997713,33655.0,33654.0,3.72514626]
[1625501362942,1.77097713,33655.0,33654.0,3.72514626]
[1625501366152,1.75456856,33655.0,33654.0,3.72514626]
[1625501366302,0.70192579,33655.0,33654.0,5.11659442]
[1625501366952,0.71833657,33655.0,33654.0,5.11659442]
[1625501369155,0.71833657,33655.0,33654.0,5.12038218]
[1625501371768,0.71833657,33655.0,33654.0,3.72893402]
[1625501372521,1.77116024,33655.0,33654.0,3.72893402]
[1625501374475,1.77116024,33655.0,33654.0,5.11972579]
[1625501374775,0.71833657,33655.0,33654.0,5.11972579]
[1625501379035,1.77138136,33655.0,33654.0,5.11972579]
[1625501380894,0.71833657,33655.0,33654.0,5.11972579]
[1625501382048,1.77152344,33655.0,33654.0,5.11972579]
[1625501382900,0.71833657,33655.0,33654.0,5.11972579]
[1625501388062,0.71833657,33655.0,33654.0,5.23772579]
[1625501388464,0.70192579,33655.0,33654.0,5.23772579]
[1625501388566,1.22858394,33658.0,33654.0,6.79057652]
[1625501388567,0.17563893,33658.0,33654.0,6.79057652]
[1625501388669,0.17563893,33658.0,33654.0,6.74164736]
[1625501389094,0.17563893,33658.0,33657.0,0.48115088]
[1625501389165,1.22841975,33663.0,33657.0,6.34212039]
[1625501389166,0.17556972,33662.0,33657.0,6.34212039]
[1625501389365,0.17556972,33662.0,33657.0,6.46012039]
[1625501389567,0.17556972,33662.0,33658.0,0.00378587]
[1625501389768,0.17556972,33662.0,33658.0,0.12178587]
[1625501389869,0.17556375,33663.0,33661.0,4.30782442]
[1625501389969,0.17556375,33663.0,33661.0,4.63558442]
[1625501390067,0.17556375,33663.0,33661.0,4.75358442]
[1625501390369,0.17556375,33663.0,33662.0,0.00378584]
[1625501390467,0.17556375,33663.0,33662.0,0.06278584]
[1625501390567,0.17556375,33663.0,33662.0,0.12178584]
[1625501390668,0.17556375,33663.0,33662.0,4.43050672]
[1625501391018,0.17556375,33663.0,33662.0,4.9116576]
[1625501391770,0.17547812,33664.0,33662.0,4.8526576]
[1625501392074,0.17547812,33664.0,33663.0,3.8293]
[1625501392189,0.70140377,33664.0,33663.0,6.81867984]
[1625501392521,0.71780976,33664.0,33663.0,6.81867984]
[1625501392810,0.71780976,33664.0,33663.0,2.98937984]
[1625501392934,0.70140377,33664.0,33663.0,2.93037984]
[1625501393127,0.94197921,33664.0,33663.0,2.93037984]
[1625501393185,0.95838598,33664.0,33663.0,2.93037984]
[1625501393293,1.07638598,33664.0,33663.0,2.93037984]
[1625501393433,3.355836,33664.0,33663.0,0.17261181]
[1625501393777,3.355836,33664.0,33662.0,1.17159813]
[1625501393778,4.99687855,33664.0,33662.0,0.65377291]
[1625501394175,4.38371323,33663.0,33662.0,0.65377291]
[1625501394273,4.45912096,33663.0,33662.0,0.65377291]
[1625501394474,4.45912096,33663.0,33662.0,0.48115088]
[1625501395076,4.6996964,33663.0,33662.0,0.48115088]
[1625501397881,5.22593331,33663.0,33662.0,0.48115088]
[1625501399840,6.80510145,33663.0,33662.0,0.48115088]
[1625501402046,6.74610145,33663.0,33662.0,0.48115088]
[1625501402547,6.80510145,33663.0,33662.0,0.48115088]
[1625501402648,6.74610145,33663.0,33662.0,0.48115088]
[1625501402748,6.74610145,33663.0,33662.0,0.76454088]
[1625501402947,6.74610145,33663.0,33662.0,4.69844088]
[1625501403048,5.16693331,33663.0,33662.0,5.90742545]
[1625501403498,3.76419417,33663.0,33662.0,6.94300255]
[1625501403607,3.82319417,33663.0,33662.0,6.94300255]
[1625501403747,3.76419417,33663.0,33662.0,6.94300255]
[1625501403850,5.16859337,33663.0,33662.0,5.90742545]
[1625501404049,5.22759337,33663.0,33662.0,5.90742545]
[1625501404150,5.16859337,33663.0,33662.0,5.21657712]
[1625501404352,5.22759337,33663.0,33662.0,5.21657712]
[1625501404450,5.16859337,33663.0,33662.0,5.21657712]
[1625501404549,5.22759337,33663.0,33662.0,5.21657712]
[1625501404651,5.22759337,33663.0,33662.0,5.90787212]
[1625501406305,5.22759337,33663.0,33662.0,1.97397212]
[1625501408428,5.51829337,33663.0,33662.0,1.97397212]
[1625501408559,7.09954131,33663.0,33662.0,1.28267712]
[1625501408658,7.09954131,33663.0,33662.0,0.99928712]
[1625501409212,7.09954131,33663.0,33662.0,0.65405749]
[1625501410320,7.04054131,33663.0,33662.0,0.65405749]
[1625501410438,7.04054131,33663.0,33662.0,0.92477749]
[1625501410520,5.45929337,33663.0,33662.0,1.96180639]
[1625501410615,5.16859337,33663.0,33662.0,1.96180639]
[1625501412423,5.16859337,33663.0,33662.0,2.99884204]
[1625501416128,5.22759337,33663.0,33662.0,2.99884204]
[1625501417030,5.48861337,33663.0,33662.0,2.51769116]
[1625501417128,5.57731337,33663.0,33662.0,2.24697116]
[1625501417229,5.63631337,33663.0,33662.0,2.24697116]
[1625501417579,9.97561337,33663.0,33662.0,2.24697116]
[1625501417681,9.97561337,33663.0,33661.0,0.25980361]
[1625501417682,11.55700898,33663.0,33661.0,0.25980361]
[1625501417785,11.46830898,33663.0,33661.0,0.25980361]
[1625501418181,0.0164074,33662.0,33661.0,0.25980361]
[1625501418282,0.0164074,33662.0,33660.0,0.26002092]
[1625501418283,6.57720947,33662.0,33660.0,0.26002092]
[1625501418381,6.63620947,33662.0,33660.0,0.26002092]
[1625501418680,0.01640806,33661.0,33660.0,0.26002092]
[1625501418781,0.13440806,33661.0,33660.0,0.26002092]
[1625501418982,6.67179659,33661.0,33658.0,0.26021049]
[1625501419230,0.01640837,33660.0,33658.0,0.26021049]
[1625501419331,0.29957544,33659.0,33658.0,0.26021049]
[1625501419432,0.35857544,33659.0,33658.0,0.26021049]
[1625501419532,0.37498397,33659.0,33658.0,0.26021049]
[1625501419633,6.87722774,33659.0,33657.0,0.26040141]
[1625501420087,0.01640856,33658.0,33657.0,0.26040141]
[1625501420197,6.63675519,33658.0,33657.0,0.08680047]
[1625501420741,6.63675519,33658.0,33656.0,0.26067227]
[1625501421090,0.01640877,33657.0,33656.0,0.26067227]
[1625501421289,6.81693351,33657.0,33656.0,0.26067227]
[1625501421844,6.81693351,33657.0,33656.0,0.173782]
[1625501422293,6.81693351,33657.0,33656.0,0.52118962]
[1625501422695,5.23570223,33657.0,33656.0,0.52118962]
[1625501424095,6.81662309,33657.0,33656.0,0.52118962]
[1625501424897,6.81662309,33657.0,33656.0,0.17400007]
[1625501427006,5.23570223,33657.0,33656.0,0.17400007]
[1625501427858,5.23570223,33657.0,33656.0,0.52174912]
[1625501428561,5.23570223,33657.0,33656.0,2.2600913]
[1625501429009,5.23570223,33657.0,33656.0,1.21708599]
[1625501429812,5.23570223,33657.0,33656.0,2.25996323]
[1625501431814,5.17670223,33657.0,33656.0,2.25996323]
[1625501432116,5.23570223,33657.0,33656.0,2.25996323]
[1625501432666,3.8301438,33657.0,33656.0,2.25996323]
[1625501433322,3.8301438,33657.0,33656.0,2.50053867]
[1625501438839,3.79724836,33657.0,33656.0,2.25996323]
[1625501439494,4.33739924,33657.0,33656.0,2.25996323]
[1625501439591,7.32246788,33657.0,33654.0,0.26080618]
[1625501439891,0.01641208,33656.0,33654.0,0.17310618]
[1625501439991,0.0902,33655.0,33654.0,0.11410618]
[1625501440191,0.0902,33655.0,33653.0,1.855e-05]
[1625501440291,6.5875667,33655.0,33653.0,0.086983]
[1625501440390,6.66297964,33655.0,33653.0,0.086983]
[1625501440490,6.72197964,33655.0,33653.0,0.086983]
[1625501440690,0.0164131,33654.0,33653.0,0.086983]
[1625501440890,0.1344131,33654.0,33653.0,0.086983]
[1625501441140,0.1344131,33654.0,33650.0,0.521907]
[1625501441240,0.6344131,33654.0,33650.0,0.521907]
[1625501441443,0.48115088,33651.0,33650.0,0.521907]
[1625501441541,4.31055088,33651.0,33650.0,0.521907]
[1625501441642,4.31055088,33651.0,33649.0,0.69605269]
[1625501441743,4.38596385,33651.0,33649.0,0.69605269]
[1625501442042,0.01641284,33650.0,33649.0,0.69605269]
[1625501442141,0.28402284,33650.0,33649.0,0.69605269]
[1625501442342,0.34302284,33650.0,33649.0,0.69605269]
[1625501442493,0.34302284,33650.0,33645.0,1.63268081]
[1625501442494,2.97590148,33650.0,33645.0,1.45816955]
[1625501442843,0.01641308,33649.0,33645.0,1.45816955]
[1625501442944,0.13441308,33649.0,33645.0,1.45816955]
[1625501443194,1.22861797,33647.0,33645.0,1.45816955]
[1625501443294,1.28761797,33647.0,33645.0,1.45816955]
[1625501443494,0.13490008,33646.0,33645.0,1.45816955]
[1625501443595,0.19390008,33646.0,33645.0,1.45816955]
[1625501443696,0.19390008,33646.0,33645.0,0.24057544]
[1625501444151,0.21031635,33646.0,33645.0,0.24057544]
[1625501444849,0.15131635,33646.0,33645.0,0.24057544]
[1625501444998,0.13490008,33646.0,33645.0,0.24057544]
[1625501445100,0.13490008,33646.0,33645.0,1.45718841]
[1625501445550,0.15131597,33646.0,33645.0,1.45718841]
[1625501445799,0.13490008,33646.0,33645.0,1.45718841]
[1625501445899,0.13490008,33646.0,33645.0,0.24057544]
[1625501446200,0.13490008,33646.0,33645.0,1.45725445]
[1625501446707,0.13490008,33646.0,33645.0,2.84694211]
[1625501446803,0.13490008,33646.0,33645.0,2.8507304]
[1625501447255,0.13490008,33646.0,33645.0,2.9097304]
[1625501447359,0.13490008,33646.0,33645.0,2.8507304]
[1625501447456,0.13490008,33646.0,33645.0,2.9097304]
[1625501447556,0.13490008,33646.0,33645.0,4.47071024]
[1625501449008,0.13490008,33646.0,33645.0,4.81079024]
[1625501449109,0.72172632,33651.0,33645.0,4.81079024]
[1625501449362,0.72172632,33651.0,33650.0,1.21375654]
[1625501449459,0.72172632,33651.0,33650.0,1.45433198]
[1625501449760,0.72172632,33651.0,33650.0,1.45811854]
[1625501451062,0.72172632,33651.0,33650.0,1.51711854]
[1625501451163,0.72172632,33651.0,33650.0,1.51333198]
[1625501451366,0.72172632,33651.0,33650.0,1.51711852]
[1625501451765,0.72172632,33651.0,33650.0,2.90480219]
[1625501458883,1.07285847,33651.0,33650.0,2.90480219]
[1625501463191,0.72172632,33651.0,33650.0,2.90480219]
[1625501464550,1.07291938,33651.0,33650.0,2.90480219]
[1625501465401,0.72172632,33651.0,33650.0,2.90480219]
[1625501465552,0.48115088,33651.0,33650.0,2.90480219]
[1625501466503,0.83238325,33651.0,33650.0,2.90480219]
[1625501467808,0.48115088,33651.0,33650.0,2.90480219]
[1625501471713,0.48115088,33651.0,33650.0,3.94187684]
[1625501472116,0.48115088,33651.0,33650.0,8.29677684]
[1625501472915,0.49757245,33651.0,33650.0,8.29677684]
[1625501475770,1.55180884,33651.0,33650.0,8.29677684]
[1625501476174,0.49757245,33651.0,33650.0,8.29677684]
[1625501478527,1.55184221,33651.0,33650.0,8.29677684]
[1625501479076,0.49757245,33651.0,33650.0,8.29677684]
[1625501479577,1.55188871,33651.0,33650.0,8.29677684]
[1625501484487,1.55188871,33651.0,33650.0,8.63651684]
[1625501485438,0.49757245,33651.0,33650.0,8.63651684]
[1625501488097,0.49757245,33651.0,33650.0,10.19478908]
[1625501488948,0.01642157,33651.0,33650.0,10.19478908]
[1625501489049,0.01642157,33651.0,33650.0,10.25378908]
[1625501489246,1.05434288,33653.0,33650.0,10.25378908]
[1625501489443,1.05434288,33653.0,33651.0,0.01387749]
[1625501489543,1.05434288,33653.0,33651.0,0.07287749]
[1625501489647,1.05434288,33653.0,33651.0,0.13187749]
[1625501489744,1.05434288,33653.0,33652.0,0.01387531]
[1625501489845,1.05434288,33653.0,33652.0,0.07287531]
[1625501489944,1.05434288,33653.0,33652.0,0.13187531]
[1625501490045,1.05434288,33653.0,33652.0,0.61302619]
[1625501490350,0.35145501,33657.0,33652.0,5.79421323]
[1625501490546,0.35145501,33657.0,33653.0,0.01008821]
[1625501490645,0.35145501,33657.0,33653.0,0.06908821]
[1625501490748,0.35145501,33657.0,33653.0,0.12808821]
[1625501490846,0.35145501,33657.0,33653.0,0.13187149]
[1625501490949,0.35143904,33658.0,33656.0,5.17979973]
[1625501491047,0.35143904,33658.0,33656.0,5.29779973]
[1625501491398,0.35143904,33658.0,33657.0,5.42455756]
[1625501491498,0.35143904,33658.0,33657.0,5.48355756]